Cogmind - Beta 13 @@@ ROGUE MODE // 2024.04.17 @ 16:16:56 Player: NikedNOGsing_in_can't Result: Destroyed by AG-94732 with Assembled Focal Cannon Performance ------------- Evolutions (4) 2000 Regions Visited (12) 2400 Robots Destroyed (151) 755 Value Destroyed (4410) 4410 Prototype IDs (26) 520 Alien Tech Used (0) 0 Bonus (2570) 2570 TOTAL SCORE: 12655 Bonus ------- High Alert Combat Kills 110 Follower Combat Kills 1067 Entered DSFs 500 Met Imprinter 300 Was Imprinted 300 Destroyed Z-Imprinter 1000 Acquired ECA 300 Friendly Fire -1007 Cogmind --------- Core Integrity 0/850 Matter 248/300 Energy 56/100 System Corruption 0% Temperature Cool (42) Movement Core (1550) Ox30 Location -6/Deep Caves Parts ------- > --- POWER (2) -------- (None) > --- PROPULSION (4) --- (None) > --- UTILITY (6) ------ Huge Storage Unit Surveybot 24 Chip Rainbow Chip > --- WEAPON (3+1) ----- Matter Neutralizer Power Sword (+) > --- INVENTORY (25) --- Improved Cooling System Improved Cooling System Humpback Zionite Biocell (600) Improved Matter Compressor (159) Improved Trap Scanner Triangulator Surveybot 24 Scanner 0b10 Decoder Chip [Skirmisher] Improved Transmission Jammer Advanced ECM Suite Makeshift Cloaking Device Advanced Hacking Suite Authchip [R/Combat] Bomb Factory No. 2 Improved KE Penetrator Precision Rocket Launcher Peak State ------------ > --- POWER ------------ Neutrino Core Antimatter Reactor Antimatter Reactor > --- PROPULSION ------- Medium Treads Medium Treads Improved Medium Treads Heavy Treads > --- UTILITY ---------- Huge Storage Unit Seismic Detector Improved Force Field Hacking Suite Bomb Factory No. 2 Rainbow Chip > --- WEAPON ----------- Advanced Plasma Cannon Improved KE Penetrator Precision Rocket Launcher Power Sword > --- INVENTORY -------- Armored Huge Wheel Power Amplifier Improved Cooling System Improved Cooling System Humpback Improved Matter Compressor Improved Trap Scanner Triangulator Surveybot 24 Scanner Surveybot 24 Chip 0b10 Decoder Chip [Skirmisher] Improved Transmission Jammer Advanced ECM Suite Makeshift Cloaking Device Improved Weapon Shielding Layered Medium Armor Plating Advanced Hacking Suite Authchip [R/Combat] Matter Neutralizer Molecular Deconstructor [Rating: 117] Favorites ----------- Power Antimatter Reactor Engine Light Ion Engine Power Core Neutrino Core Reactor Antimatter Reactor Propulsion Heavy Treads Treads Heavy Treads Leg VSS Leg Wheel Armored Huge Wheel Flight Unit VTOL Module Utility Hacking Suite Device Seismic Detector Storage Huge Storage Unit Processor Rainbow Chip Hackware Hacking Suite Protection Improved Light Armor Plating Weapon Improved KE Penetrator Energy Gun Heavy Beamcaster Energy Cannon Advanced Plasma Cannon Ballistic Gun Improved KE Penetrator Ballistic Cannon Advanced Assault Cannon Launcher Precision Rocket Launcher Special Weapon Mining Laser Slashing Weapon Power Sword Special Melee Weapon Improved Datajack Build | -11 -10 -10 -8 -7 -7 -7 -7 -6 -6 -6 -6 -6 ------- Run | Yrd Mat Sub Mat Fac Was Fac DSF Fac Low Low Zio Dee Slots Evolved 8 | . . . 4 2 . . . 2 . . . . Power 1 | . . . . . . . . 1 . . . . Propulsion 2 | . . . 2 . . . . . . . . . Utility 4 | . . . 2 1 . . . 1 . . . . Weapon 1 | . . . . 1 . . . . . . . . Parts Attached 302 | 6 9 26 50 65 16 . 3 31 8 28 23 37 Power 25 | 1 1 4 2 4 3 . . 1 . 1 2 6 Engine 12 | 1 1 4 1 4 1 . . . . . . . Core 4 | . . . 1 . . . . . . . 1 2 Reactor 9 | . . . . . 2 . . 1 . 1 1 4 Propulsion 36 | 2 . 3 7 13 2 . . 3 2 . 3 1 Treads 17 | 2 . . 5 4 2 . . 1 . . 3 . Leg 5 | . . . . 5 . . . . . . . . Wheel 12 | . . 3 2 3 . . . 2 1 . . 1 Hover . | . . . . . . . . . . . . . Flight 2 | . . . . 1 . . . . 1 . . . Utility 139 | 1 4 4 19 33 7 . 1 17 2 15 9 27 Device 96 | . 2 2 11 27 3 . . 15 1 12 7 16 Storage 8 | 1 1 . . 1 1 . . . . 1 1 2 Processor 3 | . . . . 1 . . . . . . 1 1 Hackware 4 | . . . 1 . . . . 1 1 . . 1 Protection 28 | . 1 2 7 4 3 . 1 1 . 2 . 7 Artifact . | . . . . . . . . . . . . . Weapon 102 | 2 4 15 22 15 4 . 2 10 4 12 9 3 Energy Gun 7 | . . . . 2 2 . 1 1 . 1 . . Energy Cannon 10 | . . . 3 1 1 . . 1 1 1 1 1 Ballistic Gun 36 | 2 3 7 10 4 . . . 4 . 4 2 . Ballistic Cannon 10 | . . 1 1 7 1 . . . . . . . Launcher 27 | . 1 4 5 . . . 1 4 2 5 4 1 Special Weapon 9 | . . 3 3 . . . . . 1 . 1 1 Impact Weapon . | . . . . . . . . . . . . . Slashing Weapon 2 | . . . . 1 . . . . . . 1 . Piercing Weapon . | . . . . . . . . . . . . . Special Melee Weapon 1 | . . . . . . . . . . 1 . . Unidentified Prototypes 15 | . . . 1 2 1 . . 2 2 1 3 3 Parts Lost 49 | . 1 5 9 13 . . . 1 . 2 . 18 Power 10 | . 1 . 1 2 . . . . . 1 . 5 Propulsion 18 | . . 3 4 5 . . . 1 . . . 5 Utility 11 | . . 1 2 2 . . . . . . . 6 Weapon 10 | . . 1 2 4 . . . . . 1 . 2 Highest Loss Streak 13 | . 1 2 4 4 . . . 1 . 2 . 13 To Critical Strikes . | . . . . . . . . . . . . . Average Slot Usage (%) 86 | . 99 98 84 92 86 84 78 83 85 80 81 87 Engine 3 | . 14 14 5 5 1 . . 5 . . . . Core 1 | . . . 3 1 . . . . . . . 5 Reactor 6 | . . . . . 5 7 7 6 13 12 12 5 Treads 10 | . 28 3 10 15 9 15 15 11 6 6 8 14 Leg 1 | . . . . 6 3 . . . . . . . Wheel 6 | . . 23 14 2 3 . . . 5 6 5 3 Device 15 | . 12 12 18 15 8 7 7 18 20 12 14 19 Storage 7 | . 14 14 9 7 13 15 9 6 6 6 5 6 Hackware 7 | . . . 2 7 7 7 7 10 13 13 11 2 Protection 2 | . 1 1 3 6 7 7 7 1 . . . 1 Energy Cannon 4 | . . . 2 3 6 7 7 5 5 5 4 4 Ballistic Gun 8 | . 25 16 13 5 5 . . 6 10 8 5 4 Ballistic Cannon 2 | . . 2 . 11 7 7 7 . . . . . Launcher 2 | . 2 5 1 . . . 1 . 1 3 4 3 Naked Turns . | . . . . . . . . . . . . . Heaviest Build 341 | 11 30 38 50 126 134 132 140 148 144 341 285 195 Greatest Support 156 | 40 40 40 80 80 140 140 140 140 28 28 156 156 Greatest Overweight (x) 13 | . . 3 3 13 4 . . 5 5 12 10 5 Average Overweight (x) 3 | . . . 1 1 1 . . . 4 8 7 3 Largest Inventory Capacity 35 | 8 15 15 15 25 25 25 25 25 25 35 35 25 Average Capacity 24 | 7 13 15 15 18 25 25 25 25 25 33 33 25 Most Carried 35 | 8 15 15 15 24 25 25 25 25 25 35 35 25 Average Carried 23 | 5 12 14 14 15 24 25 24 24 24 32 32 23 Final Capacity 35 | 8 15 15 15 25 25 25 25 25 25 35 25 25 Final Carried 33 | 8 14 14 15 22 25 25 25 24 25 33 24 19 Class Distribution -------------------- 24% | Hauler-Tank 22% | Scavenger-Tank 19% | Mutant 13% | Tank 11% | Scavenger-Mutant 3% | Hauler-Mutant Dominant Class ---------------- Mutant | -10/Materials Mutant | -10/Subcaves Mutant | -8/Materials Scavenger-Tank | -7/Factory Tank | -7/Waste Tank | -7/Factory Scavenger-Tank | -7/DSF Scavenger-Tank | -6/Factory Scavenger-Tank | -6/Lower Caves Hauler-Tank | -6/Lower Caves Hauler-Tank | -6/Zion Tank | -6/Deep Caves Resources | -11 -10 -10 -8 -7 -7 -7 -7 -6 -6 -6 -6 -6 ----------- Run | Yrd Mat Sub Mat Fac Was Fac DSF Fac Low Low Zio Dee Matter Collected 6709 | 267 271 422 1036 1960 771 . 42 518 92 510 331 489 Remotely 799 | . . . . 718 63 . . 18 . . . . Salvage Created 6596 | 175 351 230 1002 2165 661 . . 815 79 393 . 725 Parts 296 | 17 21 16 59 118 2 . . 24 10 8 . 21 Haulers Intercepted 9 | . 1 . 1 4 . . . 2 . 1 . . Recyclers Shooed 7 | . 1 . 1 3 . . . 2 . . . . Parts Field Recycled . | . . . . . . . . . . . . . Retrieved Matter . | . . . . . . . . . . . . . Parts Self-Destructed 34 | . . 19 . . . . . . 9 6 . . Prevented . | . . . . . . . . . . . . . Kills | -11 -10 -10 -8 -7 -7 -7 -7 -6 -6 -6 -6 -6 ------- Run | Yrd Mat Sub Mat Fac Was Fac DSF Fac Low Low Zio Dee Combat Hostiles Destroyed 93 | . 7 7 19 24 . . . 5 5 11 . 15 Guns 27 | . 4 1 8 6 . . . 2 1 2 . 3 Cannons 27 | . . . 4 18 . . . 1 . . . 4 AOE 39 | . 3 6 7 . . . . 2 4 9 . 8 Classes Destroyed 19 | 2 5 1 4 3 . . . 1 . 1 . 2 Worker 5 | . . . 1 4 . . . . . . . . Builder 11 | . 2 . 5 4 . . . . . . . . Tunneler 9 | 5 . . 2 1 . . . 1 . . . . Hauler 9 | . 1 . 1 4 . . . 2 . 1 . . Recycler 18 | 1 1 . 2 12 . . . 2 . . . . Mechanic 2 | . . . . 1 . . . 1 . . . . Operator 1 | . . . 1 . . . . . . . . . Watcher 6 | . 2 . . 3 . . . 1 . . . . Swarmer 19 | . 3 . 5 7 . . . . 4 . . . Grunt 30 | . 4 . 10 7 . . . 2 . 7 . . Brawler 1 | . . . . 1 . . . . . . . . Duelist 4 | . . . 2 1 . . . 1 . . . . Sentry 7 | . . . 2 3 . . . 1 . 1 . . Hunter 2 | . . . . . . . . . . 2 . . Programmer 7 | . . . . 4 . . . 1 1 1 . . Subdweller 7 | . . 7 . . . . . . . . . . Z-Technician 5 | . . . . . . . . . . . . 5 Z-Light 8 | . . . . . . . . . . . . 8 Assembled 6 | . . . . . . . . . . . . 6 Thug 3 | . . . . 3 . . . . . . . . Martyr 1 | . . . . . . . . 1 . . . . Best Kill Streak 6 | 2 5 2 6 6 . . . 4 4 6 . 6 Combat Bots Only 6 | . 3 2 6 5 . . . 3 4 5 . 6 Max Kills in Single Turn 4 | 1 2 2 2 2 . . . 2 2 4 . 2 Gunslinging . | . . . . . . . . . . . . . Exploded 3 | . 2 2 2 . . . . 2 2 3 . 2 Melee . | . . . . . . . . . . . . . Uniques/NPCs Destroyed 1 | . . . . . . . . . . . . 1 Z-Imprinter (-6/Deep Caves) Combat | -11 -10 -10 -8 -7 -7 -7 -7 -6 -6 -6 -6 -6 -------- Run | Yrd Mat Sub Mat Fac Was Fac DSF Fac Low Low Zio Dee Hostile Shots Fired 725 | . 58 16 160 236 . . . 43 12 99 . 101 Missed 175 | . 13 4 36 59 . . . 14 4 30 . 15 Damage Taken 10237 | . 681 290 1997 2982 . . 47 462 57 911 . 2810 Core 1670 | . 71 70 293 364 . . . 155 . 32 . 685 Absorbed by Shields 1390 | . . . . 155 . . . 111 60 298 . 766 Redirected to Shielding 184 | . . . . . . . . . . . . 184 Regen/Repaired (Parts) 601 | . . . 217 . 384 . . . . . . . Core Remaining (%) 59 | 100 . 43 46 . . . 48 . . . . . Volleys Fired 457 | 20 35 26 104 122 22 . 1 39 7 12 8 61 Largest 3 | 2 2 2 2 3 1 . 3 3 3 3 2 3 Hottest 234 | 40 50 100 100 153 105 . 234 219 171 187 131 174 Shots Fired 839 | 40 70 34 179 260 23 . 3 93 9 31 9 88 Gun 404 | 40 66 10 104 69 2 . 1 70 2 12 1 27 Cannon 343 | . . 3 49 191 21 . 2 20 4 8 1 44 Launcher 56 | . 4 7 19 . . . . 3 2 11 . 10 Special 36 | . . 14 7 . . . . . 1 . 7 7 Kinetic 555 | 40 66 13 117 228 3 . 1 46 2 11 1 27 Thermal 213 | . . 14 43 32 20 . 2 44 4 9 1 44 Explosive 56 | . 4 7 19 . . . . 3 2 11 . 10 Electromagnetic . | . . . . . . . . . . . . . Robot Hit Streak 20 | 10 11 11 13 10 20 . 2 8 2 4 . 9 Robot Miss Streak 6 | 2 3 1 5 6 3 . 1 4 3 3 . 3 Penetration Max 1 | . . . . . . . . 1 . . . . Secondary Targets 1 | . . . 1 . . . . . . . . . Max Gunslinging Chain 1 | . . . 1 . . . . . . . . . Shots Hit Robots 445 | 25 48 12 88 116 22 . 2 55 2 14 . 61 Core Hits 281 | 9 24 14 51 78 14 . 1 23 6 26 . 35 Critical Kills 8 | . . . 1 3 . . . 1 . 1 . 2 Critical Parts Destroyed 5 | . . . 2 1 . . . 1 . 1 . . Critical Strikes 21 | . . . 3 10 . . . 4 . 2 . 2 Burn 2 | . . . . . . . . 2 . . . . Meltdown 3 | . . . . . . . . 1 . . . 2 Destroy 10 | . . . 3 4 . . . 1 . 2 . . Blast 6 | . . . . 6 . . . . . . . . Melee Attacks 50 | . . . . 3 . . . . . . 29 18 Impact . | . . . . . . . . . . . . . Slashing 50 | . . . . 3 . . . . . . 29 18 Piercing . | . . . . . . . . . . . . . Sneak Attacks . | . . . . . . . . . . . . . Combat Hostiles . | . . . . . . . . . . . . . Follow-up Attacks . | . . . . . . . . . . . . . Damage Inflicted 15969 | 254 1005 509 2849 3194 794 . 99 2008 346 1845 . 3066 Guns 4382 | 254 513 83 1036 740 54 . 24 1064 32 171 . 411 Cannons 5235 | . . . 595 2446 740 . 75 552 . 107 . 720 Explosions 5642 | . 487 426 1218 . . . . 392 314 1567 . 1238 Melee 697 | . . . . . . . . . . . . 697 Ramming 13 | . 5 . . 8 . . . . . . . . Kinetic 6265 | 254 513 83 1272 2694 82 . 37 716 32 171 . 411 Thermal 3886 | . 186 . 707 492 712 . 62 900 . 107 . 720 Explosive 5108 | . 301 426 870 . . . . 392 314 1567 . 1238 Electromagnetic . | . . . . . . . . . . . . . Impact . | . . . . . . . . . . . . . Slashing 697 | . . . . . . . . . . . . 697 Piercing . | . . . . . . . . . . . . . Highest Corruption 7 | . 2 2 . 7 7 7 7 . . . . . Average Corruption 3 | . 2 2 . 4 7 7 7 . . . . . Corruption Purged 5 | . . . . 5 . . . . . . . . Corruption Blocked . | . . . . . . . . . . . . . Effects 122 | . 16 22 . 43 30 3 8 . . . . . Message Errors 27 | . 6 3 . 12 5 . 1 . . . . . Matter Fused 34 | . 5 7 . 13 8 . 1 . . . . . Heat Flow Errors 22 | . 3 6 . 5 4 1 3 . . . . . Energy Discharges 15 | . 1 4 . 3 4 1 2 . . . . . Parts Rejected 1 | . . . . 1 . . . . . . . . Data Loss (minor) 11 | . . 2 . 2 6 1 . . . . . . Data Loss (major) 8 | . 1 . . 4 2 . 1 . . . . . Misfires 3 | . . . . 2 1 . . . . . . . Alerts 1 | . . . . 1 . . . . . . . . Overload Shots . | . . . . . . . . . . . . . Overflow Damage 705 | . 87 . 122 59 . . . 22 28 34 . 353 Projectiles 137 | . . . 21 59 . . . . . . . 57 Explosions 385 | . 87 . 101 . . . . 22 28 34 . 113 Melee 183 | . . . . . . . . . . . . 183 Knockbacks 14 | . . . . 11 2 . 1 . . . . . Impact . | . . . . . . . . . . . . . Kinetic 12 | . . . . 10 1 . 1 . . . . . Secondary 2 | . . . . 1 1 . . . . . . . Self-Inflicted Damage 913 | . 62 . 257 . . . . 73 . 171 . 350 Shots 25 | . 4 . 10 . . . . 2 . 8 . 1 Rammed 3 | . 2 . . 1 . . . . . . . . Targets Rammed 3 | . 2 . . 1 . . . . . . . . Kicked . | . . . . . . . . . . . . . Crushed . | . . . . . . . . . . . . . Highest Temperature 744 | . 260 224 285 571 224 192 201 744 132 450 72 446 Average Temperature 121 | . 67 108 90 133 100 107 72 186 61 187 37 103 Received Heat Transfer 2401 | . 291 24 927 503 . . . 49 . 200 . 407 Effects 39 | . 1 2 3 9 . . . 15 . 4 . 5 Shutdowns 12 | . . . . 3 . . . 7 . 1 . 1 Energy Bleed 7 | . . . 3 2 . . . 1 . . . 1 Interference 10 | . 1 2 . . . . . 2 . 2 . 3 Matter Decay 2 | . . . . 2 . . . . . . . . Short Circuit 3 | . . . . 1 . . . 1 . 1 . . Damage (minor) 4 | . . . . 1 . . . 3 . . . . Damage (core) 1 | . . . . . . . . 1 . . . . Siege Activations . | . . . . . . . . . . . . . Robots Corrupted . | . . . . . . . . . . . . . Combat Hostiles . | . . . . . . . . . . . . . Parts Fried . | . . . . . . . . . . . . . Impact Corruptions . | . . . . . . . . . . . . . Robots Melted 3 | . . . . . . . . 1 . . . 2 Combat Hostiles 1 | . . . . . . . . . . . . 1 Parts Melted 12 | . 1 . 1 1 . . . 6 . . . 3 Heat Transferred 5123 | . 150 . 792 924 740 . 74 1258 . 124 . 1061 Parts Sabotaged . | . . . . . . . . . . . . . Parts Stolen . | . . . . . . . . . . . . . Parts Stripped . | . . . . . . . . . . . . . Power Chain Reactions . | . . . . . . . . . . . . . Alert | -11 -10 -10 -8 -7 -7 -7 -7 -6 -6 -6 -6 -6 ------- Run | Yrd Mat Sub Mat Fac Was Fac DSF Fac Low Low Zio Dee Peak Influence 637 | 30 329 . 283 500 176 10 467 637 . . . . Initial 245 | . 19 . . 128 176 . 7 245 . . . . Average 187 | 16 118 . 52 207 72 2 298 431 . . . . Maximum Alert Level 2 | . 1 . 1 2 . . 2 2 . . . . Low Security (%) 56 | 100 69 . 92 45 100 100 33 . . . . . Level 1 31 | . 30 . 7 52 . . 22 45 . . . . Level 2 11 | . . . . 1 . . 44 54 . . . . Level 3 . | . . . . . . . . . . . . . Level 4 . | . . . . . . . . . . . . . Level 5 . | . . . . . . . . . . . . . High Security . | . . . . . . . . . . . . . Max Security . | . . . . . . . . . . . . . Sterilizations 1 | . . . . . . . 1 . . . . . Squads Dispatched 17 | . . . 2 8 . . 2 5 . . . . Investigation 1 | . . . . . . . . 1 . . . . Extermination 8 | . . . . 6 . . . 2 . . . . Reinforcement 7 | . . . 2 2 . . 2 1 . . . . Assault 1 | . . . . . . . . 1 . . . . Garrison . | . . . . . . . . . . . . . Intercept . | . . . . . . . . . . . . . Searches Triggered . | . . . . . . . . . . . . . Construction Impeded 1 | . . . 1 . . . . . . . . . Haulers Reinforced 1 | . . . . 1 . . . . . . . . Active Scanning Responses . | . . . . . . . . . . . . . Cargo Convoy Interrupts . | . . . . . . . . . . . . . Stealth | -11 -10 -10 -8 -7 -7 -7 -7 -6 -6 -6 -6 -6 --------- Run | Yrd Mat Sub Mat Fac Was Fac DSF Fac Low Low Zio Dee Distress Signals 10 | . 2 . 6 2 . . . . . . . . Communications Jammed . | . . . . . . . . . . . . . Distress Signals . | . . . . . . . . . . . . . Times Spotted 150 | . 14 7 34 40 . . 4 18 5 12 . 16 Peak Tracking Total 7 | . 6 2 5 7 . . 3 4 4 5 . 5 Tactical Retreats 12 | . 1 . 7 1 . . . 1 . 1 . 1 Traps | -11 -10 -10 -8 -7 -7 -7 -7 -6 -6 -6 -6 -6 ------- Run | Yrd Mat Sub Mat Fac Was Fac DSF Fac Low Low Zio Dee Traps Triggered 6 | . 3 1 . 2 . . . . . . . . Indirectly . | . . . . . . . . . . . . . Trap Hack Attempts . | . . . . . . . . . . . . . Triggered . | . . . . . . . . . . . . . Disarmed . | . . . . . . . . . . . . . Reprogrammed . | . . . . . . . . . . . . . Reused 1 | . . . . . . . . . . . . 1 Traps Extracted . | . . . . . . . . . . . . . Installed 2 | . . . . . . . . . . . 1 1 Triggered 1 | . . . . . . . . . 1 . . . Fabricated Traps 2 | . . . . . . . . . . . 1 1 Most Traps Carried 1 | . . . . . . . . . 1 1 1 . Machines | -11 -10 -10 -8 -7 -7 -7 -7 -6 -6 -6 -6 -6 ---------- Run | Yrd Mat Sub Mat Fac Was Fac DSF Fac Low Low Zio Dee Machines Disabled 28 | . 5 2 5 1 . . 1 10 1 . . 3 Max in Single Turn 2 | . 2 1 2 1 . . . 1 1 . . 1 Garrison Access 4 | . . . . 3 . . . 1 . . . . Machines Repaired . | . . . . . . . . . . . . . Machines Dismantled . | . . . . . . . . . . . . . Machines Sabotaged . | . . . . . . . . . . . . . Overloaded Fab Kills . | . . . . . . . . . . . . . Hacking | -11 -10 -10 -8 -7 -7 -7 -7 -6 -6 -6 -6 -6 --------- Run | Yrd Mat Sub Mat Fac Was Fac DSF Fac Low Low Zio Dee Machines Accessed 33 | . 8 1 3 10 . 2 . 6 2 1 . . Terminals 17 | . 7 . 2 5 . 1 . 2 . . . . Fabricators 3 | . . . . 1 . . . 2 . . . . Repair Stations 1 | . . . 1 . . . . . . . . . Recycling Units 1 | . 1 . . . . . . . . . . . Scanalyzers 3 | . . . . 1 . 1 . 1 . . . . Garrison Access 4 | . . . . 3 . . . 1 . . . . Total Hacks 83 | . 22 9 9 25 . 3 . 12 2 1 . . Successful 44 | . 8 9 6 11 . 2 . 5 2 1 . . Failed 39 | . 14 . 3 14 . 1 . 7 . . . . Catastrophic 3 | . 2 . . 1 . . . . . . . . Database Lockouts . | . . . . . . . . . . . . . Manual 25 | . 10 . 5 7 . . . 2 1 . . . Terminals 47 | . 21 . 5 16 . 1 . 4 . . . . Fabricators 6 | . . . . 2 . . . 4 . . . . Repair Stations 4 | . . . 4 . . . . . . . . . Recycling Units 1 | . 1 . . . . . . . . . . . Scanalyzers 6 | . . . . 2 . 2 . 2 . . . . Garrison Access 7 | . . . . 5 . . . 2 . . . . Terminal Hacks 19 | . 3 9 . 2 . 1 . 1 2 1 . . Record 9 | . . 8 . . . . . . 1 . . . Open Door 2 | . . . . . . . . . 1 1 . . Open DSF 2 | . . . . . . 1 . 1 . . . . Branch Access Points 1 | . . . . 1 . . . . . . . . Locate Traps 1 | . 1 . . . . . . . . . . . Dispatch Records 1 | . . . . 1 . . . . . . . . Hauler Manifests 1 | . 1 . . . . . . . . . . . Zone Layout 1 | . 1 . . . . . . . . . . . Derelict Proto ID Bank 1 | . . 1 . . . . . . . . . . Fabricator Hacks 1 | . . . . 1 . . . . . . . . Build 1 | . . . . 1 . . . . . . . . Repair Station Hacks 4 | . . . 4 . . . . . . . . . Scan Component 2 | . . . 2 . . . . . . . . . Repair 2 | . . . 2 . . . . . . . . . Recycling Unit Hacks 1 | . 1 . . . . . . . . . . . Retrieve Components 1 | . 1 . . . . . . . . . . . Scanalyzer 5 | . . . . 2 . 1 . 2 . . . . Insert Component 3 | . . . . 1 . 1 . 1 . . . . Analyze 2 | . . . . 1 . . . 1 . . . . Garrison Access Hacks 4 | . . . . 3 . . . 1 . . . . Seal Access 4 | . . . . 3 . . . 1 . . . . Unauthorized Hacks 10 | . 4 . 2 3 . . . 1 . . . . Terminals 10 | . 4 . 2 3 . . . 1 . . . . Botnet 10 | . 4 . 2 3 . . . 1 . . . . Fabricators . | . . . . . . . . . . . . . Repair Stations . | . . . . . . . . . . . . . Recycling Units . | . . . . . . . . . . . . . Scanalyzers . | . . . . . . . . . . . . . Garrison Access . | . . . . . . . . . . . . . Data Cores Recovered . | . . . . . . . . . . . . . Used . | . . . . . . . . . . . . . Hacking Detections 26 | . 8 . 2 9 . 2 . 5 . . . . Full Trace Events . | . . . . . . . . . . . . . Feedback Events . | . . . . . . . . . . . . . Feedback Blocked . | . . . . . . . . . . . . . Robot Schematics Acquired . | . . . . . . . . . . . . . Robots Built 3 | . . . . 3 . . . . . . . . Authchips . | . . . . . . . . . . . . . Time 67 | . . . . 67 . . . . . . . . Total Robot Build Rating 12 | . . . . 12 . . . . . . . . Part Schematics Acquired 2 | . . . . 1 . . . 1 . . . . Parts Built . | . . . . . . . . . . . . . Authchips . | . . . . . . . . . . . . . Time . | . . . . . . . . . . . . . Total Part Build Rating . | . . . . . . . . . . . . . Parts Repaired 2 | . . . 2 . . . . . . . . . Time 64 | . . . 64 . . . . . . . . . Parts Recycled . | . . . . . . . . . . . . . Recycled Matter . | . . . . . . . . . . . . . Retrieved Matter . | . . . . . . . . . . . . . Retrieved Components 9 | . 9 . . . . . . . . . . . Parts Scanalyzed 2 | . . . . 1 . 1 . . . . . . Part Schematics Acquired 2 | . . . . 1 . . . 1 . . . . Parts Damaged 1 | . . . . 1 . . . . . . . . Bothacking | -11 -10 -10 -8 -7 -7 -7 -7 -6 -6 -6 -6 -6 ------------ Run | Yrd Mat Sub Mat Fac Was Fac DSF Fac Low Low Zio Dee Used RIF Installer . | . . . . . . . . . . . . . Robots Hacked . | . . . . . . . . . . . . . Non-combat . | . . . . . . . . . . . . . Combat . | . . . . . . . . . . . . . Robot Hacks Applied . | . . . . . . . . . . . . . Relay Couplers Released . | . . . . . . . . . . . . . Fabnet Peak Effective % . | . . . . . . . . . . . . . Robots Rewired . | . . . . . . . . . . . . . Allies Hacked . | . . . . . . . . . . . . . Hacks Repelled . | . . . . . . . . . . . . . Allies | -11 -10 -10 -8 -7 -7 -7 -7 -6 -6 -6 -6 -6 -------- Run | Yrd Mat Sub Mat Fac Was Fac DSF Fac Low Low Zio Dee Total Allies 30 | . . . . 6 20 . . . . . 4 . Largest Group 20 | . . . . 3 20 20 20 16 . . 4 . Highest-Rated Group 524 | . . . . 93 524 524 524 462 . . 155 . Highest-Rated Ally 41 | . . . . 31 35 35 35 35 . . 41 . Total Orders . | . . . . . . . . . . . . . Ally Attacks 214 | . . . . 43 . . 61 110 . . . . Total Damage 4123 | . . . . 976 . . 1141 2006 . . . . Kills 35 | . . . . 8 . . 9 18 . . . . Allies Corrupted . | . . . . . . . . . . . . . Allies Melted . | . . . . . . . . . . . . . Intel | -11 -10 -10 -8 -7 -7 -7 -7 -6 -6 -6 -6 -6 ------- Run | Yrd Mat Sub Mat Fac Was Fac DSF Fac Low Low Zio Dee Robot Analysis Total . | . . . . . . . . . . . . . Derelict Logs Recovered 6 | . . . . . . . . . 3 2 1 . Drone Launches . | . . . . . . . . . . . . . Drone Recoveries . | . . . . . . . . . . . . . Exploration | -11 -10 -10 -8 -7 -7 -7 -7 -6 -6 -6 -6 -6 ------------- Run | Yrd Mat Sub Mat Fac Was Fac DSF Fac Low Low Zio Dee Turns Passed 22902 | 274 1367 1769 1730 2976 968 137 199 1772 1449 2514 5320 2427 Spaces Moved 10513 | 127 571 1179 847 1377 483 84 109 717 791 1036 2160 1032 Core 14 | 2 . . . 12 . . . . . . . . Treads 3330 | 125 571 45 109 654 372 84 109 596 . . 337 328 Legs 41 | . . . . 41 . . . . . . . . Wheels 7128 | . . 1134 738 670 111 . . 121 791 1036 1823 704 Hover . | . . . . . . . . . . . . . Flight . | . . . . . . . . . . . . . Fastest Speed 50 | 50 160 95 95 90 160 160 160 160 160 175 160 160 Average Speed 177 | 158 160 103 115 163 172 160 160 169 174 223 234 189 Slowest Speed 700 | 160 160 160 250 700 240 160 160 240 175 280 250 240 Overloaded Moves . | . . . . . . . . . . . . . Propulsion Burnouts . | . . . . . . . . . . . . . Robots Hopped . | . . . . . . . . . . . . . Cave-ins Triggered 3 | . . . . 3 . . . . . . . . Exploration Rate (%) 60 | 6 88 54 48 33 95 2 89 23 81 93 92 86 Regions Visited 12 Branch Regions 5 Pre-discovered Areas 5 | . . . . . . . . . 3 1 1 . Known Exits Taken 1 | . . . . . . 1 . . . . . . Unknown Exits Taken 8 | 1 1 1 1 . . . . 1 1 1 1 . Scrap Searched 21 | . . 2 . . . . . . 5 9 5 . Spaces Dug 37 | . . . 14 9 . . . 1 . . 1 12 Terrain Destroyed 575 | . 73 20 164 46 . . . 18 18 157 1 78 Melee 7 | . . . . 3 . . . . . . 1 3 Projectile 109 | . . . 24 43 . . . 11 2 13 . 16 AOE 459 | . 73 20 140 . . . . 7 16 144 . 59 Terrain Rammed . | . . . . . . . . . . . . . Walls Destroyed . | . . . . . . . . . . . . . Machines Disabled . | . . . . . . . . . . . . . Actions | -11 -10 -10 -8 -7 -7 -7 -7 -6 -6 -6 -6 -6 --------- Run | Yrd Mat Sub Mat Fac Was Fac DSF Fac Low Low Zio Dee Total 13903 | 162 956 1661 1426 1908 594 87 133 1195 850 1201 2358 1372 Wait 2288 | . 326 418 388 275 49 4 10 390 27 94 98 209 Move 10502 | 126 570 1178 846 1377 482 83 108 716 790 1035 2159 1032 Hop . | . . . . . . . . . . . . . Pick Up 142 | 9 10 7 19 34 8 . 4 7 7 17 15 5 Fast Attach 47 | 6 . 1 11 8 3 . 1 . 2 6 8 1 Attach 72 | . 2 4 10 17 . . . 9 3 4 11 12 Detach 32 | . . . 4 4 1 . 1 6 3 1 6 6 Swap 184 | . 7 21 29 40 13 . 2 22 3 18 4 25 Drop 121 | 1 4 6 15 27 13 . 6 6 8 14 19 2 Fire 457 | 20 35 26 104 122 22 . 1 39 7 12 8 61 Melee 50 | . . . . 3 . . . . . . 29 18 Ram . | . . . . . . . . . . . . . Kick . | . . . . . . . . . . . . . Crush 3 | . 2 . . 1 . . . . . . . . Escape Stasis . | . . . . . . . . . . . . . Rewire 3 | . . . . . 3 . . . . . . . Trap 2 | . . . . . . . . . . . 1 1 Miscellaneous . | . . . . . . . . . . . . . Route ------- -11/Scrapyard -10/Materials (discovered 5 exits: [*Mat x3] / [*Min] / *Sub) -10/Subcaves -8/Materials (discovered 2 exits: *Fac x2) -7/Factory (discovered 3 exits: *Fac / *Low x2) -7/Waste -7/Factory -7/DSF -6/Factory -6/Lower Caves -6/Lower Caves (discovered 2 exits: [*Fac] / *Zio) -6/Zion (discovered 2 exits: [*Dee] / [*Pro]) -6/Deep Caves (discovered 1 exit: [*Pro]) History --------- Turn | Location | Event 4 | -11/Scrapyard | Discovered new exit (range 16) 275 | -11/Scrapyard | Entered Materials 311 | -10/Materials | Build established: Mutant 372 | -10/Materials | Discovered new exit (range 7) 655 | -10/Materials | Discovered new exit (range 11) 1022 | -10/Materials | Discovered new exit (range 14) 1237 | -10/Materials | Discovered new exit (range 11) 1619 | -10/Materials | Discovered new exit (range 5) 1642 | -10/Materials | Entered Subcaves 2067 | -10/Subcaves | Shifting Twisted Machinery released Slug Cannon 2069 | -10/Subcaves | Shifting Twisted Machinery released Battle Rifle 2184 | -10/Subcaves | Discovered new exit (range 11) 2262 | -10/Subcaves | Visited 4L-MR0's lab 2277 | -10/Subcaves | Found Rainbow Chip 2401 | -10/Subcaves | Shifting Twisted Machinery released Sub. Power Source 2426 | -10/Subcaves | Shifting Twisted Machinery released Riot Gun 2972 | -10/Subcaves | Ambushed by Subdwellers from Twisted Machinery 2988 | -10/Subcaves | Core integrity fell below 50% 3411 | -10/Subcaves | Entered Materials 3411 | -8/Materials | Evolved 4 slots: Propulsion x2, Utility x2 3753 | -8/Materials | Discovered new exit (range 16) 3858 | -8/Materials | Lost 4 parts (2n2u) 4007 | -8/Materials | Build established: Scavenger-Mutant 4270 | -8/Materials | Repaired Arm. Treads 4297 | -8/Materials | Repaired Seismic Detector 4806 | -8/Materials | Discovered new exit (range 5) 4936 | -8/Materials | Build established: Mutant 5058 | -8/Materials | Core integrity fell below 50% 5141 | -8/Materials | Entered Factory 5141 | -7/Factory | Evolved 2 slots: Utility x1, Weapon x1 5443 | -7/Factory | Build established: Scavenger-Tank 5821 | -7/Factory | Fabricated L-41 Fighter (x3) 6475 | -7/Factory | Crushed by falling debris 6481 | -7/Factory | Crushed by falling debris 6487 | -7/Factory | Crushed by falling debris 6512 | -7/Factory | Lost 3 parts (1n2w) 6726 | -7/Factory | Lost 4 parts (2n1u1w) 6831 | -7/Factory | Allied Derelicts emerged from ambush trap array 6855 | -7/Factory | P-60 Hacker assimilated allied FF-OQG(g) 6985 | -7/Factory | Build established: Mutant 7298 | -7/Factory | Discovered new exit (range 16) 7394 | -7/Factory | Build established: Tank 8083 | -7/Factory | Core integrity fell below 50% 8104 | -7/Factory | Discovered new exit (range 9) 8117 | -7/Factory | Identified exit to Lower Caves 8117 | -7/Factory | Sucked down chute 8117 | -7/Factory | Entered Waste 8118 | -7/Waste | Joined by Warlord forces that had cleared the area 8510 | -7/Waste | Discovered new exit (range 16) 8865 | -7/Waste | Build established: Scavenger-Tank 9085 | -7/Waste | Entered Factory 9085 | -7/Factory | Accompanied by 20 allies 9209 | -7/Factory | Build established: Tank 9215 | -7/Factory | Identified exit to DSF 9222 | -7/Factory | Entered DSF 9222 | -7/DSF | Accompanied by 20 allies 9243 | -7/DSF | Additional patrols routed to DSF 9298 | -7/DSF | Lost 3 allies 9324 | -7/DSF | Discovered new exit (range 16) 9338 | -7/DSF | Sterilization system engaged 9358 | -7/DSF | Ambient heat levels rising (+10) 9373 | -7/DSF | Ambient heat levels rising (+10) 9388 | -7/DSF | Ambient heat levels rising (+10) 9403 | -7/DSF | Ambient heat levels rising (+10) 9418 | -7/DSF | Ambient heat levels rising (+10) 9421 | -7/DSF | Entered Factory 9421 | -6/Factory | Accompanied by 16 allies 9421 | -6/Factory | Evolved 2 slots: Power x1, Utility x1 9561 | -6/Factory | Build established: Scavenger-Tank 10611 | -6/Factory | Build established: Gunner 10628 | -6/Factory | Lost 9 allies 11158 | -6/Factory | Discovered new exit (range 9) 11171 | -6/Factory | First assault squad dispatched 11193 | -6/Factory | Entered Lower Caves 11200 | -6/Lower Caves | Met a Warlord Commander 11201 | -6/Lower Caves | Learned location of Warlord (-4) 11202 | -6/Lower Caves | Warlord Commander delivered Encrypted Comm Array 11203 | -6/Lower Caves | Found Encrypted Comm Array 11274 | -6/Lower Caves | Build established: Scavenger-Tank 11748 | -6/Lower Caves | Learned location of Zion (-6) 11859 | -6/Lower Caves | Learned 8 Factory zone layouts 12081 | -6/Lower Caves | Discovered new exit (range 14) 12225 | -6/Lower Caves | Acquired the password to a Derelict Tinkerer's latest research 12236 | -6/Lower Caves | Found Prototype Special Weapon 12269 | -6/Lower Caves | Identified Molecular Deconstructor 12642 | -6/Lower Caves | Entered another Lower Caves area 12757 | -6/Lower Caves | Discovered new exit (range 10) 13288 | -6/Lower Caves | Build established: Hauler-Tank 13577 | -6/Lower Caves | Attracted the attention of an 0b10 checkpoint 13779 | -6/Lower Caves | Encountered a Warlord checkpoint 14212 | -6/Lower Caves | Discovered new exit (range 8) 15156 | -6/Lower Caves | Entered Zion 15497 | -6/Zion | Discovered new exit (range 8) 15841 | -6/Zion | Found Prototype Launcher 15845 | -6/Zion | Identified Gui. Missile Launcher 15851 | -6/Zion | Found Prototype Launcher 15852 | -6/Zion | Identified Rocket Array 15936 | -6/Zion | Found Prototype Device 15936 | -6/Zion | Identified Bomb Factory No. 2 15963 | -6/Zion | Warned about trapping Zion interior 16826 | -6/Zion | Learned location of 1 exit from Factory 17655 | -6/Zion | Imprinted 17658 | -6/Zion | Declared Zion's savior 18914 | -6/Zion | Discovered new exit (range 2) 18917 | -6/Zion | Saw the warning signs outside the Deep Caves entrance 18997 | -6/Zion | Build established: Hauler-Mutant 19728 | -6/Zion | Attached Rainbow Chip, gained temporary slots: Power, Propulsion, Utility, Weapon 20002 | -6/Zion | Build established: Scavenger-Mutant 20476 | -6/Zion | Entered Deep Caves 20476 | -6/Deep Caves | Accompanied by 4 allies 20637 | -6/Deep Caves | Found Unknown Device 20638 | -6/Deep Caves | Identified Surveybot 24 Scanner 20647 | -6/Deep Caves | Found Surveybot 24 Chip 21013 | -6/Deep Caves | Attacked by Z-Imprinter 21030 | -6/Deep Caves | Destroyed Z-Imprinter 21072 | -6/Deep Caves | Found Prototype Protection 21072 | -6/Deep Caves | Identified Zio. Weapon Casing 21110 | -6/Deep Caves | Z-Facility disabled 21188 | -6/Deep Caves | Build established: Scavenger-Tank 21777 | -6/Deep Caves | Discovered new exit (range 6) 21963 | -6/Deep Caves | Build established: Tank 22156 | -6/Deep Caves | Spotted AG-94732 22193 | -6/Deep Caves | Spotted AG-09962 22871 | -6/Deep Caves | Core integrity fell below 50% 22893 | -6/Deep Caves | Core integrity fell below 20% 22903 | -6/Deep Caves | Destroyed by AG-94732 with Assembled Focal Cannon Last Messages --------------- 22848_ Imp. Weapon Shielding destroyed. 22851_ Med. Treads destroyed. 22851_ Zio. Light DM Reactor destroyed. 22854_ Temporary Propulsion slot lost. 22867_ Entropy package works its way towards AG-94732 core. 22870_ Molecular Deconstructor destroyed. 22870_ Med. Treads destroyed. 22873_ AG-94732 core entropy levels peaking. 22876_ Neutrino Core destroyed. 22876_ Imp. Force Field destroyed. 22892_ Adv. Plasma Cannon destroyed. 22892_ Destroyed Prototype Device. 22893_ AG-94732 GOLEM Unit beginning Prototype Device integration. 22900_ Seismic Detector destroyed. 22900_ Power Amplifier destroyed. 22900_ Temporary Utility slot lost. [Achievement: This Is Interesting...] [Achievement: Achiever] Map ----- +----------------------------------------------------+ | """ # ! ##### | | """ # ! ###### | | ?"" # [ ##### | | """ # [ ########## | | """ # [ ########### ## | | ?"" # = ########### #### | | ?"" # = ########### #### | | ?"""""" # ########### #### | | ######### = *[ ########### #### | | ?"""""#""" * ########### #### | | """"""#""" M ####### ## | | """"""#""" == ###### | | """"""#""" = / ##### | | """"""#""" = * #### ###### | | """"""### #### ####### | | """"""""" / #### ####### | | """"""""" #### ####### # | | """"""""" ###### # | | """"""""""" % ##### # | | """"""""" ! % ! # | | """""""""" ### # | | """"""""" = #### ####### | | """""""""" ################# | | """"""""" # # "################ | | """"""""" #### ;# ## ################## | | """"""""""" #####;@;# ##################### | | """""""""" ;;;;; ##################### | | """""""""#########; G###################### | | | | | | | | | | | | | | | | | | | | | | | | | | | | | | | | | | | | | | | | | | | | | +----------------------------------------------------+ Best States ------------- Heat Dissipation 64 Energy Generation 51 Energy Capacity 765 Matter Stores 600 Matter Capacity 600 Sight Range 16 Terrain Scan Range 24 Terrain Scan Density 2010 ECM Strength 2 Jamming Range 14 Cloak Strength 3 Power Amplification 20 Armor Coverage 600 Weapon Shielding 100 Weapon Cycling 15 Evasion (%) 57 Recoil Reduction 5 Offensive Hacking 11 Authchip Count 2 Item Schematics ----------------- Arm. Treads | -7/Factory | Scanalyzed Adv. Hacking Suite | -6/Factory | Scanalyzed Robot Schematics ------------------ None Fabricated ------------ L-41 Fighter | x3 | -7/Factory | Preloaded Alien Tech Used ----------------- None Achievements -------------- Achiever My Command Is Your Wish No Signal Omniscient Cartographer Packrat Respectable Loadout Tank This Is Interesting... We Are Legion Challenges ------------ None Game ------ Seed RecoilServoPrototype Manual? 0 Play Time 05:05:54 Cumulative 34.1 hours Start 2024.04.14 @ 17:52:10 End 2024.04.17 @ 16:16:56 Sessions 11 Manual Loads 0 Difficulty Rogue Special Mode None Game No. 23 Rogue 23 Adventurer 0 Explorer 0 Win Type - Total 0 Types 0/0/0/0/0/0/0/0/0 Lore% 25 Gallery% 31 Achievement% 25 Wizard Run 0 Options --------- Layout 1 ASCII 0 Keyboard 0 Movement Mouse Keybinds 0 Fullscreen 1 Font 24/Smallcaps Map View 50x35 Zoom Use 0% Tactical HUD 1 Map Filters NONE Filters NONE Steam 1 RUN: 4d23ca2b-377d-405d-8509-bf2a88ec85de